bitfinex-derivatives/quotes_SOLF0:USTF0_20250509
["timestamp","ask_amount","ask_price","bid_price","bid_amount"]
[1746821256497,5.8196,171.81,171.78,5.8202]
[1746821256701,5.8196,171.81,171.79,6.5370229]
[1746821256902,5.8196,171.81,171.78,5.8202]
[1746821257096,5.8196,171.81,171.79,6.53701443]
[1746821257293,5.8196,171.81,171.78,5.8202]
[1746821257498,5.8196,171.81,171.79,6.54546728]
[1746821257797,5.8192,171.82,171.74,3.7205]
[1746821258097,5.8192,171.82,171.75,6.5454817]
[1746821258293,5.8192,171.82,171.76,6.5454817]
[1746821258503,5.8192,171.82,171.77,6.5454817]
[1746821258698,5.8192,171.82,171.79,5.8198]
[1746821259403,52.42,171.83,171.79,5.8198]
[1746821259605,52.42,171.83,171.78,5.8203]
[1746821259805,5.8197,171.81,171.79,6.55035268]
[1746821260104,5.8197,171.81,171.78,5.8203]
[1746821260297,5.8197,171.81,171.79,6.55018515]
[1746821260497,5.8197,171.81,171.8,6.55018515]
[1746821260902,5.8197,171.81,171.78,5.8203]
[1746821261104,5.8197,171.81,171.79,6.55436792]
[1746821261300,5.8197,171.81,171.8,6.55635295]
[1746821261501,5.8192,171.82,171.8,6.55635295]
[1746821261803,5.8192,171.82,171.79,5.8201]
[1746821262000,52.42,171.83,171.81,5.8195]
[1746821262804,58.239,171.83,171.8,5.8197]
[1746821263102,58.239,171.83,171.81,6.55797757]
[1746821263399,32.039,171.83,171.82,6.55797757]
[1746821263605,26.22,171.86,171.82,6.55797757]
[1746821263804,26.22,171.86,171.83,6.55797757]
[1746821264003,26.22,171.86,171.85,5.8181]
[1746821264202,26.22,171.86,171.85,12.37607757]
[1746821264603,26.22,171.86,171.85,6.55797757]
[1746821264803,26.22,171.86,171.85,6.56831256]
[1746821265301,26.22,171.89,171.8,26.22]
[1746821265496,26.22,171.89,171.81,5.6451]
[1746821266807,26.2,171.91,171.82,6.56694789]
[1746821266999,26.2,171.91,171.83,32.74694789]
[1746821267195,26.2,171.91,171.84,6.56694789]
[1746821267403,5.8171,171.88,171.85,12.38484789]
[1746821267605,5.8171,171.88,171.86,6.56694789]
[1746821267804,5.8171,171.88,171.87,6.56694789]
[1746821268402,5.8169,171.89,171.87,6.56694789]
[1746821268607,5.8169,171.89,171.88,6.56694789]
[1746821269808,32.0369,171.89,171.88,6.56694789]
[1746821270105,5.8173,171.88,171.85,5.8179]
[1746821270306,26.22,171.89,171.81,5.6451]
[1746821270307,26.22,171.89,171.86,6.56195697]
[1746821270605,5.8171,171.88,171.87,6.56195697]
[1746821271305,5.8171,171.88,171.85,5.818]
[1746821271506,5.8174,171.87,171.86,6.56292788]
[1746821271705,5.8174,171.87,171.81,5.6451]
[1746821271907,5.8174,171.87,171.82,6.56413264]
[1746821272108,5.8178,171.86,171.83,12.38273264]
[1746821272304,5.8178,171.86,171.84,6.56413264]
[1746821272503,5.8176,171.87,171.85,6.56413264]
[1746821272706,5.8176,171.87,171.86,6.56413264]
[1746821273612,26.22,171.89,171.86,6.56500498]
[1746821273804,26.22,171.89,171.87,5.8174]
[1746821274402,26.22,171.89,171.86,5.8176]
[1746821274608,32.037,171.89,171.86,5.8176]
[1746821274812,32.037,171.89,171.87,6.56426325]
[1746821275007,32.037,171.89,171.86,5.8176]
[1746821275204,32.037,171.89,171.87,6.56251494]
[1746821275404,32.037,171.89,171.86,5.8176]
[1746821275608,32.037,171.89,171.87,6.56187254]
[1746821275804,32.037,171.89,171.86,5.8176]
[1746821276000,32.037,171.89,171.87,6.56193097]
[1746821276204,32.037,171.89,171.86,5.8176]
[1746821276404,32.037,171.89,171.87,6.56070183]
[1746821276606,32.037,171.89,171.86,5.8176]
[1746821276806,32.037,171.89,171.87,6.55977664]
[1746821277006,32.037,171.89,171.86,6.8176]
[1746821277207,26.22,171.89,171.87,6.5597067]
[1746821277410,26.22,171.89,171.86,6.8176]
[1746821277609,26.22,171.89,171.87,6.55878629]
[1746821277909,26.22,171.89,171.86,1.0]
[1746821278210,26.22,171.89,171.87,6.55885629]
[1746821278405,26.22,171.89,171.88,6.55885629]
[1746821278910,32.0368,171.89,171.88,6.55885629]
[1746821280610,5.8174,171.88,171.86,1.0]
[1746821280811,5.8174,171.88,171.87,6.55811054]
[1746821281714,26.22,171.89,171.87,6.55811054]
[1746821282011,26.22,171.89,171.88,6.55645431]
[1746821282415,26.22,171.89,171.88,6.55194521]
[1746821283912,32.0368,171.89,171.88,6.55194521]
[1746821284320,32.0368,171.89,171.86,1.0]
[1746821284518,32.0368,171.89,171.87,6.55057412]
[1746821284722,32.0368,171.89,171.88,6.5505161]
[1746821285421,32.0368,171.89,171.87,5.8174]
[1746821285719,32.0368,171.89,171.86,6.8176]
[1746821285921,32.0368,171.89,171.87,6.55006726]
[1746821286220,32.0368,171.89,171.86,1.0]
[1746821286420,32.0368,171.89,171.87,6.54979153]
[1746821286621,32.0368,171.89,171.87,5.8172]
[1746821286820,26.22,171.89,171.86,1.0]
[1746821287223,26.22,171.89,171.87,6.54906947]
[1746821287423,32.0368,171.89,171.87,5.8174]
[1746821288322,5.8171,171.88,171.86,6.8177]
[1746821288521,5.8171,171.88,171.87,6.54628951]
[1746821290021,9.56963879,171.88,171.79,383.18]
[1746821290225,11.50343879,171.88,171.8,6.54621919]
[1746821290425,11.50343879,171.88,171.81,6.54621919]
[1746821290627,11.50343879,171.88,171.82,6.54621919]
[1746821290824,11.50343879,171.88,171.83,6.54621919]
[1746821291026,5.8183,171.85,171.82,5.8191]
[1746821291226,26.14,171.86,171.83,6.54667317]
[1746821291423,26.14,171.86,171.84,6.54667317]
[1746821291623,26.14,171.86,171.77,26.14]
[1746821291825,26.14,171.86,171.78,6.54648067]
[1746821292028,26.14,171.86,171.85,5.8181]
[1746821292327,52.3,171.89,171.85,6.54719707]
[1746821292529,5.8173,171.88,171.86,6.54719707]
[1746821292826,5.8173,171.88,171.85,5.818]
[1746821293327,5.8174,171.87,171.86,6.54861416]
[1746821293928,5.8172,171.88,171.86,6.54861416]
[1746821294127,5.8172,171.88,171.85,5.8181]
[1746821294327,5.8172,171.88,171.86,6.55156766]
[1746821294524,5.8172,171.88,171.85,5.8181]
[1746821294722,5.8172,171.88,171.86,6.55407308]
[1746821294920,5.8172,171.88,171.85,5.8181]
[1746821295128,5.8172,171.88,171.86,6.55634917]
[1746821295324,5.8172,171.88,171.87,6.55913482]
[1746821297531,5.8172,171.88,171.87,6.56315064]
[1746821297826,5.8172,171.88,171.85,5.8181]
[1746821298030,5.8172,171.88,171.86,6.5631902]
[1746821298229,5.8172,171.88,171.87,6.5631902]
[1746821299225,5.8172,171.88,171.85,5.8181]
[1746821299432,5.8172,171.88,171.86,6.56418382]
[1746821299630,5.8172,171.88,171.87,6.56418382]
[1746821300432,5.818,171.86,171.83,5.8186]
[1746821300731,52.3,171.89,171.84,6.56877457]
[1746821301030,52.3,171.89,171.85,6.56966197]
[1746821301230,52.3,171.89,171.83,5.8188]
[1746821301430,5.818,171.86,171.84,6.56780702]
[1746821301630,5.818,171.86,171.85,6.56780702]
[1746821302733,5.8176,171.87,171.85,6.56780702]
[1746821302932,5.8176,171.87,171.86,6.56989504]
[1746821303831,5.8172,171.88,171.86,6.56989504]
[1746821304031,52.3,171.89,171.87,6.56989504]
[1746821304231,52.3,171.89,171.8,5.761]
[1746821304431,5.8176,171.87,171.84,5.8182]
[1746821304632,5.8176,171.87,171.85,6.57179186]
[1746821304833,5.8176,171.87,171.86,6.57179186]
[1746821305334,5.8172,171.88,171.86,6.57179186]
[1746821305535,5.8172,171.88,171.87,6.57179186]
[1746821305835,31.9769,171.89,171.87,6.57179186]
[1746821306031,58.0969,171.89,171.88,6.57179186]
[1746821307334,52.28,171.89,171.88,6.57179186]
[1746821307932,58.0968,171.89,171.88,6.57179186]
[1746821308330,58.0968,171.89,171.88,6.57787193]
[1746821308731,26.16,171.89,171.88,6.57787193]
[1746821308936,26.12,171.92,171.88,6.57787193]
[1746821309235,26.12,171.92,171.89,6.57787193]
[1746821309437,26.12,171.92,171.9,6.57787193]
[1746821309628,26.12,171.92,171.91,6.57787193]
[1746821309828,26.12,171.92,171.91,12.39397193]
[1746821310024,26.12,171.92,171.91,12.39251386]
[1746821310530,26.12,171.92,171.91,6.57641386]
[1746821311335,31.9357,171.92,171.91,6.57641386]
[1746821311834,31.9357,171.92,171.91,6.57333727]
[1746821312836,26.12,171.92,171.91,6.57333727]
[1746821313635,26.12,171.92,171.91,12.38943727]
[1746821314038,5.8154,171.93,171.91,12.38943727]
[1746821314236,26.12,171.94,171.92,6.57333727]
[1746821314436,26.12,171.94,171.93,6.57333727]
[1746821314636,26.12,171.95,171.93,6.57333727]
[1746821314834,5.8151,171.94,171.91,5.8161]
[1746821315037,5.8151,171.94,171.92,6.56852845]
[1746821315332,5.8151,171.94,171.93,6.56852845]
[1746821320842,26.12,171.95,171.93,6.56852845]
[1746821321038,26.12,171.95,171.94,6.56852845]
[1746821321236,26.12,171.95,171.94,12.38362845]
[1746821321739,534.7339,171.98,171.96,5.8144]
[1746821321935,555.02,171.98,171.96,5.8144]
[1746821322140,75.64310077,172.02,171.97,6.55965924]
[1746821322332,5.8128,172.01,171.98,5.8137]
[1746821323141,5.8128,172.01,171.99,6.55330144]
[1746821323341,5.8128,172.01,171.98,5.8137]
[1746821323743,31.9324,172.02,171.99,12.36153545]
[1746821323940,31.9324,172.02,171.99,5.8133]
[1746821324743,26.12,172.02,172.0,5.813]
[1746821324945,5.8121,172.03,172.0,5.813]
[1746821325145,61.78963879,172.05,171.95,26.12]
[1746821325350,5.8118,172.04,172.01,5.8125]
[1746821326342,58.0314,172.05,172.02,5.8122]
[1746821326544,31.9314,172.05,172.02,5.8122]
[1746821327145,26.12,172.05,171.95,88.12]
[1746821327345,26.12,172.05,171.96,6.53082431]
[1746821327548,35.68963879,172.05,171.97,6.53082431]
[1746821327843,5.8127,172.02,171.98,12.3413631]
[1746821328042,26.08,172.03,171.95,26.12]
[1746821328242,5.8136,171.99,171.96,6.52838977]
[1746821328436,5.8136,171.99,171.97,6.52838977]
[1746821328748,5.8136,171.99,171.93,386.8225]
[1746821328948,5.8136,171.99,171.94,6.52657113]
[1746821329247,5.8136,171.99,171.95,12.34097113]
[1746821329448,26.12,172.01,171.93,3.7425]
[1746821329642,26.12,172.01,171.94,6.52570422]
[1746821329842,26.12,172.01,171.95,6.52570422]
[1746821330049,5.8137,171.99,171.96,12.34000422]
[1746821330349,5.8137,171.99,171.96,5.8143]
[1746821330651,26.12,172.01,171.93,3.7425]
[1746821330838,26.12,172.01,171.94,6.51988761]
[1746821331042,5.8143,171.97,171.95,6.51988761]
[1746821331242,5.8143,171.97,171.94,5.8149]
[1746821331442,5.8143,171.97,171.95,6.52049268]
[1746821331647,31.8935,171.99,171.96,5.8144]
[1746821331950,26.08,171.99,171.93,1.8346]
[1746821332249,26.12,172.01,171.94,6.52014215]
[1746821332449,26.12,172.01,171.95,6.52014215]
[1746821332645,26.12,172.01,171.93,1.8346]
[1746821332845,26.12,172.01,171.99,5.8133]
[1746821333450,26.12,172.01,171.93,1.8346]
[1746821333642,26.12,172.01,171.94,6.51548289]
[1746821333843,26.12,172.01,171.99,5.8131]
[1746821335049,31.9328,172.01,171.99,5.8131]
[1746821335258,31.9328,172.01,171.98,5.8136]
[1746821336052,26.12,172.01,171.98,5.8136]
[1746821336650,31.9329,172.01,171.98,5.8136]
[1746821336850,31.9329,172.01,171.99,5.8133]
[1746821337348,31.9329,172.01,171.98,5.8136]
[1746821337550,26.12,172.01,171.94,6.51455156]
[1746821337748,26.12,172.01,171.95,12.32905156]
[1746821337944,26.12,172.01,171.95,5.8145]
[1746821338140,5.8137,171.98,171.95,5.8145]
[1746821339251,5.8137,171.98,171.96,6.8144]
[1746821339552,5.8135,171.99,171.96,6.8144]
[1746821340352,5.8135,171.99,171.97,5.814]
[1746821342053,5.8132,172.0,171.97,5.814]
[1746821342351,26.12,172.01,171.97,5.814]
[1746821342553,5.8131,172.0,171.97,5.814]
[1746821342949,26.12,172.01,171.97,5.814]
[1746821343250,5.8136,171.99,171.96,6.8143]
[1746821343654,5.8136,171.99,171.97,5.814]
[1746821343951,5.8136,171.99,171.96,1.0]
[1746821344152,5.8136,171.99,171.96,6.8142]
[1746821344651,5.8136,171.99,171.96,1.0]
[1746821344852,5.8136,171.99,171.96,6.8142]
[1746821345648,26.12,172.01,171.96,1.0]
[1746821345848,52.18,172.01,171.97,6.5131865]
[1746821346049,57.9929,172.01,171.98,5.8135]
[1746821346348,52.18,172.01,171.98,5.8135]
[1746821346551,52.18,172.01,171.96,1.0]
[1746821346851,61.74963879,172.01,171.96,1.0]
[1746821347243,5.814,171.97,171.96,1.0]
[1746821347450,52.12,171.97,171.9,6.52602405]
[1746821347651,52.12,171.97,171.86,52.12]
[1746821347652,9.56963879,171.95,171.86,52.12]
[1746821347959,5.8158,171.92,171.89,5.8165]
[1746821348150,9.56963879,171.95,171.89,5.8165]
[1746821348452,9.56963879,171.95,171.9,5.8163]
[1746821348754,61.68963879,171.97,171.86,52.12]
[1746821348957,5.815,171.95,171.87,6.53071662]
[1746821349151,5.815,171.95,171.88,6.53071662]
[1746821349352,5.815,171.95,171.89,6.53071662]
[1746821349551,5.815,171.95,171.9,6.53071662]
[1746821349752,5.8151,171.94,171.91,6.53071662]
[1746821349952,61.68963879,171.97,171.86,52.12]
[1746821350154,5.8148,171.95,171.92,5.8155]
[1746821350459,26.06,171.98,171.93,6.53337379]
[1746821350654,26.06,171.98,171.91,26.06]
[1746821350854,26.06,171.98,171.97,5.814]
[1746821351054,5.8132,172.0,171.97,5.814]
[1746821351959,31.8727,172.01,171.92,3.7035]
[1746821352153,31.8727,172.01,171.93,6.53048997]
[1746821352353,26.06,172.01,171.94,6.53048997]
[1746821352655,39.47123879,172.05,171.95,32.59048997]
[1746821352954,502.72,172.06,171.96,6.53048997]
[1746821353258,528.78,172.06,171.97,6.53048997]
[1746821353454,528.78,172.06,171.98,6.53048997]
[1746821353659,31.8712,172.06,172.03,5.812]
[1746821354353,5.8114,172.05,172.02,5.8122]
[1746821355555,5.8118,172.04,172.0,5.8127]
[1746821355756,5.8118,172.04,172.01,6.53204972]
[1746821355957,5.8118,172.04,171.96,62.0]
[1746821356153,5.8118,172.04,171.97,6.53241299]
[1746821356353,5.8118,172.04,171.98,6.53241299]
[1746821356553,5.8118,172.04,171.99,6.53241299]
[1746821356754,5.8118,172.04,172.0,6.53241299]
[1746821356955,5.8118,172.04,172.01,12.34491299]
[1746821357156,5.8118,172.04,172.01,5.8125]
[1746821358062,5.8114,172.05,171.96,62.0]
[1746821358261,26.06,172.06,171.97,6.53378654]
[1746821358456,26.04,172.08,171.98,6.53378654]
[1746821358660,31.8505,172.08,171.99,32.57378654]
[1746821358863,26.06,172.09,172.0,6.53378654]
[1746821359057,26.06,172.09,172.01,6.53378654]
[1746821359363,26.06,172.09,172.02,6.53378654]
[1746821359557,26.06,172.09,172.06,5.8108]
[1746821360262,26.06,172.09,172.05,5.8112]
[1746821360566,31.8703,172.09,172.0,3.7481]
[1746821360863,31.8703,172.09,172.01,6.52957725]
[1746821361053,31.8703,172.09,172.05,5.8111]
[1746821361562,5.8106,172.08,172.05,5.8111]
[1746821361760,5.8106,172.08,172.04,5.8115]
[1746821361960,5.8106,172.08,172.05,6.52862515]
[1746821362161,5.8106,172.08,172.0,3.7481]
[1746821362362,5.8106,172.08,172.01,6.52658131]
[1746821362563,5.8106,172.08,172.02,6.52658131]
[1746821362761,5.8106,172.08,172.03,6.52658131]
[1746821362954,5.8106,172.08,172.05,5.8113]
[1746821363260,5.8107,172.07,172.0,3.7481]
[1746821363460,35.62963879,172.09,172.01,6.52810659]
[1746821363758,35.62963879,172.09,172.02,6.52810659]
[1746821363959,5.8107,172.07,172.03,12.34010659]
[1746821364261,35.62963879,172.09,172.03,5.812]
[1746821364762,35.62963879,172.09,172.02,5.8123]
[1746821364964,35.62963879,172.09,172.03,6.53081754]
[1746821365154,35.62963879,172.09,172.02,5.8123]
[1746821365363,5.8112,172.06,172.03,6.53053318]
[1746821365657,26.02,172.07,172.04,5.8116]
[1746821365858,31.8309,172.07,172.04,5.8116]
[1746821367566,26.02,172.07,172.05,5.8113]
[1746821367769,26.02,172.07,172.0,27.935]
[1746821368066,26.02,172.07,172.01,6.5386948]
[1746821368266,5.811,172.06,172.03,5.8118]
[1746821368462,5.811,172.06,172.04,6.5386948]
[1746821368661,5.811,172.06,172.0,26.02]
[1746821368870,5.811,172.06,172.01,6.53767441]
[1746821369163,5.811,172.06,172.02,6.53767441]
[1746821369363,5.811,172.06,172.03,6.53767441]
[1746821369564,5.8113,172.05,172.0,26.02]
[1746821369766,5.8113,172.05,172.01,6.53752485]
[1746821369958,5.8113,172.05,172.02,6.53752485]
[1746821370159,5.8113,172.05,172.03,6.53752485]
[1746821370360,5.8111,172.06,171.98,26.02]
[1746821370563,5.8111,172.06,171.99,6.53705586]
[1746821370869,5.8111,172.06,172.03,5.8118]
[1746821371161,35.58963879,172.07,171.98,26.02]
[1746821371367,35.58963879,172.07,171.99,12.35072658]
[1746821371570,3.8605,172.06,172.0,6.53772658]
[1746821371768,26.02,172.05,171.96,27.9193]
[1746821372068,26.02,172.05,171.99,5.8131]
[1746821372272,5.8122,172.03,172.0,6.53758979]
[1746821372570,5.8122,172.03,171.96,27.9193]
[1746821372762,5.8122,172.03,171.97,6.53783595]
[1746821372963,5.8122,172.03,172.0,5.8129]
[1746821373164,5.8122,172.03,171.96,27.9193]
[1746821373365,5.8122,172.03,171.97,6.53834523]
[1746821373667,5.8124,172.02,171.98,6.53834523]
[1746821373869,5.8124,172.02,171.99,6.53834523]
[1746821374067,26.02,172.05,172.0,6.54329678]
[1746821374270,26.02,172.05,171.96,27.9193]
[1746821374566,26.02,172.05,171.97,6.54303595]
[1746821374767,26.02,172.05,172.01,5.8125]
[1746821374964,5.8119,172.04,172.01,5.8125]
[1746821375571,5.812,172.03,172.01,5.8125]
[1746821375768,5.812,172.03,172.0,5.8129]
[1746821375966,26.02,172.05,171.96,26.02]
[1746821376166,26.02,172.05,171.97,6.54315388]
[1746821376368,5.8126,172.02,171.98,12.35655388]
[1746821376569,26.02,172.05,171.99,6.54315388]
[1746821376770,5.8127,172.01,172.0,6.54315388]
[1746821378272,5.8125,172.02,172.0,6.54315388]
[1746821378472,26.02,172.05,171.96,26.02]
[1746821378672,26.02,172.05,171.97,6.54153896]
[1746821378868,26.02,172.05,171.98,6.54153896]
[1746821379072,5.8123,172.03,172.0,5.813]
[1746821379267,26.0,172.03,171.95,27.9309]
[1746821379572,26.0,172.03,171.96,6.54000439]
[1746821379872,26.0,172.03,171.97,6.54000439]
[1746821380071,26.0,172.03,171.98,6.54000439]
[1746821380269,5.8125,172.02,171.99,12.35320439]
[1746821380572,5.8125,172.02,172.0,6.54000439]
[1746821380772,5.8128,172.01,171.98,5.8136]
[1746821381071,5.8128,172.01,171.99,6.5398608]
[1746821381273,5.8128,172.01,172.0,6.5398608]
[1746821383075,5.8128,172.01,172.0,6.53971609]
[1746821384175,5.8128,172.01,172.0,6.53879635]
[1746821388076,5.8125,172.02,172.0,6.53879635]
[1746821388376,5.8125,172.02,171.95,27.9309]
[1746821388578,5.8125,172.02,171.96,6.54171449]
[1746821388777,5.8125,172.02,171.99,5.8131]
[1746821388978,5.8125,172.02,172.0,6.54171449]
[1746821389174,5.8125,172.02,171.99,5.8131]
[1746821389374,5.8125,172.02,172.0,6.54220922]
[1746821389574,5.8125,172.02,171.99,5.8131]
[1746821389773,5.8125,172.02,172.0,6.54201851]
[1746821389974,5.8125,172.02,171.99,5.8131]
[1746821390175,5.8125,172.02,172.0,6.54192452]
[1746821390377,5.8125,172.02,171.99,5.8131]
[1746821390576,5.8125,172.02,172.0,6.542328]
[1746821390776,5.8125,172.02,171.99,5.8131]
[1746821390976,5.8125,172.02,172.0,6.542328]
[1746821391278,5.8125,172.02,171.99,5.8131]
[1746821391479,5.8125,172.02,172.0,6.54387885]
[1746821391678,5.8125,172.02,171.99,5.8131]
[1746821391873,5.8125,172.02,172.0,6.54542962]
[1746821392078,31.8122,172.03,171.95,27.9309]
[1746821392279,31.8122,172.03,171.96,6.54556301]
[1746821392479,31.8122,172.03,171.97,6.54556301]
[1746821392780,31.8122,172.03,172.0,5.8127]
[1746821393080,26.02,172.05,172.04,5.8117]
[1746821393780,25.98,172.08,172.04,5.8117]
[1746821393980,51.98,172.08,172.04,5.8117]
[1746821394275,25.98,172.08,172.04,5.8117]
[1746821394479,51.98,172.08,172.03,5.8119]
[1746821394683,51.98,172.08,172.04,6.55243377]
[1746821394981,5.8108,172.07,172.05,6.55229173]
[1746821395178,51.98,172.08,171.98,3.8489]
[1746821395485,27.7964,172.12,171.99,32.53685147]
[1746821395679,25.98,172.12,171.99,25.98]
[1746821395871,25.98,172.12,172.0,6.55368466]
[1746821396071,25.98,172.12,172.01,34.38528466]
[1746821396277,25.98,172.12,172.1,5.8095]
[1746821396476,25.98,172.12,172.04,25.98]
[1746821396679,25.98,172.12,172.05,6.55363285]
[1746821396882,25.98,172.12,172.1,5.8094]
[1746821397386,25.98,172.12,172.11,5.8093]
[1746821400484,25.98,172.12,172.04,87.98]
[1746821400687,25.98,172.12,172.05,6.54907529]
[1746821400881,1.9564,172.15,172.06,6.5489955]
[1746821401083,27.9364,172.15,172.07,6.5489955]
[1746821401279,5.8084,172.14,172.08,6.5489955]
[1746821401483,9.54496969,172.14,172.09,6.5489955]
[1746821401682,9.54496969,172.11,172.01,39.457]
[1746821401882,5.8105,172.08,172.02,6.54585247]
[1746821402083,5.8105,172.08,172.05,5.8113]
[1746821402283,5.8105,172.08,172.06,6.54585247]
[1746821402584,5.8105,172.08,172.05,5.8113]
[1746821402783,5.8105,172.08,172.06,6.54830728]
[1746821402980,5.8107,172.07,172.04,5.8116]
[1746821403180,25.98,172.1,172.05,6.54911371]
[1746821403480,25.98,172.1,172.06,6.54911371]
[1746821403679,5.8107,172.07,172.04,5.8116]
[1746821403882,5.8107,172.07,172.05,6.5504825]
[1746821404087,5.8107,172.07,172.06,6.5504825]
[1746821404290,5.8107,172.07,172.06,6.55205325]
[1746821405093,5.8105,172.08,172.06,6.55205325]
[1746821405294,5.8105,172.08,172.05,5.8113]
[1746821405494,5.8105,172.08,172.06,6.55406331]
[1746821405698,5.8105,172.08,172.05,5.8113]
[1746821405992,5.8107,172.07,172.06,6.55389526]
[1746821406188,5.8107,172.07,172.06,6.55367476]
[1746821406995,5.8111,172.06,172.01,1.8516]
[1746821407195,9.54496969,172.08,172.04,5.8117]
[1746821407493,9.54496969,172.08,172.05,6.55542182]
[1746821407694,5.8108,172.07,172.06,6.55542182]
[1746821407993,5.8108,172.07,172.05,5.8113]
[1746821408196,5.8108,172.07,172.06,6.55638393]
[1746821408490,9.54496969,172.08,172.06,6.55638393]
[1746821408694,15.35536969,172.08,172.05,5.8113]
[1746821408898,9.54496969,172.08,172.06,6.55737851]
[1746821409192,5.8109,172.07,172.04,5.8116]
[1746821409403,5.8109,172.07,172.05,6.55759573]
[1746821409590,5.8109,172.07,172.04,5.8116]
[1746821409788,5.8109,172.07,172.05,12.36897396]
[1746821409989,5.8109,172.07,172.05,5.8113]
[1746821410390,5.8109,172.07,172.06,6.5573986]
[1746821411197,15.35536969,172.08,172.06,6.5573986]
[1746821411392,15.35536969,172.08,172.05,5.8113]
[1746821411694,15.35536969,172.08,172.06,6.55812592]
[1746821411897,9.54496969,172.08,172.05,5.8113]
[1746821412097,5.8108,172.07,172.06,6.55821286]
[1746821412997,5.8108,172.07,172.05,5.8113]
[1746821413296,15.35546969,172.08,172.05,5.8113]
[1746821413898,5.8108,172.07,172.04,5.8116]
[1746821414098,5.8108,172.07,172.05,6.56039213]
[1746821414303,25.96,172.06,172.0,1.0]
[1746821414598,25.96,172.06,172.01,6.5620482]
[1746821414799,25.96,172.06,172.02,6.5620482]
[1746821415000,25.96,172.06,172.03,6.5620482]
[1746821415299,25.96,172.06,172.0,6.8129]
[1746821415491,25.96,172.06,172.01,6.56306129]
[1746821415797,5.8123,172.03,172.02,6.56306129]
[1746821415998,25.96,172.06,172.02,6.56306129]
[1746821416298,5.8116,172.05,172.01,5.8127]
[1746821416598,25.96,172.06,172.02,6.56283685]
[1746821416797,5.8119,172.04,172.01,5.8127]
[1746821416999,5.8119,172.04,172.02,6.5627754]
[1746821417201,5.8119,172.04,172.01,5.8127]
[1746821417396,5.8119,172.04,172.02,6.56290162]
[1746821417695,5.8119,172.04,172.01,5.8127]
[1746821417894,5.8119,172.04,172.02,6.56328795]
[1746821418095,5.8119,172.04,172.01,5.8127]
[1746821418400,5.812,172.03,172.02,6.56261797]
[1746821419500,5.8118,172.04,172.02,6.56261797]
[1746821419805,25.96,172.06,172.0,1.0]
[1746821420004,25.96,172.06,172.01,6.56214504]
[1746821420204,25.96,172.06,172.02,6.56214504]
[1746821420503,31.7716,172.05,172.03,6.56184021]
[1746821420704,31.7716,172.05,172.0,1.0]
[1746821420896,31.7716,172.05,172.02,5.8121]
[1746821421097,31.7716,172.05,172.03,6.56159652]
[1746821421300,31.7716,172.05,172.0,1.0]
[1746821421501,31.7716,172.05,172.01,6.56164219]
[1746821421705,31.7716,172.05,172.02,6.56164219]
[1746821422000,17.4147,172.25,172.03,6.56164219]
[1746821422204,17.4147,172.25,172.0,1.0]
[1746821422205,5.977,172.15,172.04,6.56164219]
[1746821422507,27.46,172.18,172.05,43.56661188]
[1746821422707,55.48,172.18,172.06,34.58164219]
[1746821423010,55.48,172.18,172.07,6.56164219]
[1746821423201,61.2872,172.18,172.08,6.56164219]
[1746821423401,55.48,172.18,172.09,6.56164219]
[1746821423601,55.48,172.18,172.1,6.56164219]
[1746821423801,55.48,172.18,172.11,6.56164219]
[1746821424108,55.48,172.18,172.12,6.57877688]
[1746821424305,61.287,172.18,172.13,6.57877688]
[1746821424508,61.287,172.18,172.06,28.02]
[1746821424709,61.287,172.18,172.07,6.57973976]